[Event "CCT Chessable Masters Playoffs 2025"]
[Site "Online"]
[Date "2025.02.19"]
[Round "52"]
[White "Nepomniachtchi, Ian"]
[Black "Artemiev, Vladislav"]
[Result "1-0"]
[Annotator "TA"]
[ECO "C54"]
[WhiteElo "2754"]
[BlackElo "2691"]
[PlyCount "87"]
[EventDate "2025.02.13"]
[EventType "k.o."]
[EventCountry "NET"]
[SourceTitle "playchess.com"]
[Source "ChessBase"]
[SourceQuality "1"]
[TimeControl "600"]

{[%evp 15,87,33,32,18,25,14,12,8,48,20,22,29,27,43,22,11,120,126,276,283,310,301,310,312,522,491,599,595,587,563,545,546,525,431,399,392,383,336,333,293,341,316,470,490,595,446,600,543,553,560,559,303,354,361,376,374,417,421,453,422,434,427,512,475,523,514,678,642,1246,1189,29991,29984,29983,29984]} 1. e4 {[%emt 0:00:00]} e5 {[%emt 0:00:04]} 2. Nf3 {[%emt 0:00:02]} Nc6 {[%emt 0:00:00]} 3. Bc4 {[%emt 0:00:01]} Bc5 {[%emt 0:00:02]} 4. c3 {[%emt 0:00:02]} Nf6 {[%emt 0:00:01]} 5. d3 {[%emt 0:00:00]} O-O {[%emt 0:00:05]} 6. O-O {[%emt 0:00:02]} d5 {[%emt 0:00:00]} 7. exd5 {[%emt 0:00:02]} Nxd5 {[%emt 0:00:01]} 8. Re1 {[%emt 0:00:05]} Bg4 {[%emt 0:00:04]} 9. h3 {[%emt 0:00:01] C54: Giuoco Piano: 4 c3 Nf6, main lines with 5 d4 and 5 d3.} Bh5 {[%emt 0:00:01]} 10. Nbd2 {[%emt 0:00:01]} Nb6 {[%emt 0:00:12]} 11. b4 {[%emt 0:00:01] The position is equal.} Bd6 {[%emt 0:00:36]} 12. Bb3 {[%emt 0:00:02]} Kh8 {[%emt 0:00:25]} 13. a4 {[%emt 0:00:09][%cal Ba2a4,Ba4a5,Ba5a6,Ba6b7][%mdl 32]} (13. g4 $5 Bg6 $8 14. Ne4 $14) 13... f5 {[%emt 0:00:37]} 14. a5 {[%emt 0:00:02]} Nd7 {[%emt 0:00:01]} 15. a6 $146 {[%emt 0:00:15][%mdl 2048] White has the initiative.} ({Predecessor:} 15. b5 Ne7 16. Ra4 Nc5 17. Rh4 Nxb3 18. Nxb3 Bxf3 19. Qxf3 Ng6 20. Ra4 Qd7 21. c4 {1-0 Fuchs,J (2321)-Krivec,J (2255) Mitropa Cup (Women) 2016 (2.1)}) 15... Rb8 {[%emt 0:00:34]} (15... b5 $11 {keeps the balance.}) 16. axb7 $16 {[%emt 0:00:05][%csl Ob7] White has a strong passed pawn. White plays on the queen side and is better} e4 {[%emt 0:00:01] This move loses the game for Black.} (16... Rxb7 $16 17. Bd5 Ndb8) 17. dxe4 $18 {[%emt 0:00:03]} fxe4 {[%emt 0:00:14]} 18. Nxe4 {[%emt 0:00:24]} (18. Rxe4 $6 Nde5 19. Re3 Nxf3+ 20. Nxf3 Ne5) 18... Nce5 {[%emt 0:01:13][%cal Re5f3]} 19. Bg5 {[%emt 0:00:24]} (19. Nxd6 $6 cxd6 20. Qxd6 (20. Rxa7 Bxf3 21. Qxd6 Rf6 $16) 20... Bxf3 $18) 19... Bxf3 $2 {[%emt 0:00:40]} (19... Qe8 20. Nxd6 (20. Rxa7 Nxf3+ 21. gxf3 Bxf3 $15) 20... cxd6 21. Nxe5 (21. Qxd6 Bxf3 22. Be7 Rf5 $18) (21. Rxa7 Nxf3+ 22. gxf3 Ne5 $16) (21. Bd5 Bxf3 22. gxf3 Qg6 $18) 21... Bxd1 22. Nf7+ Qxf7 23. Bxf7 Rxf7 24. Raxd1 (24. Rexd1 Rxb7 25. Be3 Nb6 $18) 24... h6) 20. gxf3 {[%emt 0:00:14][%cal Bg2f3,Bf3f4,Bf4f5][%mdl 32]} Nf6 {[%emt 0:00:23]} 21. f4 {[%emt 0:01:07]} Ng6 {[%emt 0:00:11]} 22. f5 {[%emt 0:00:03]} Ne5 {[%emt 0:00:09]} 23. f4 {[%emt 0:01:05]} Ned7 {[%emt 0:00:38]} 24. Nxd6 {[%emt 0:00:19]} cxd6 {[%emt 0:00:02]} 25. Qxd6 {[%emt 0:00:00]} ({Much less strong is} 25. Rxa7 Qc7 26. Qf3 d5) 25... Rxb7 {[%emt 0:00:02]} 26. Rad1 {[%emt 0:00:01][%cal Ba1d1,Bd1d3,Bd3e3][%mdl 32] [#]} Qc8 {[%emt 0:00:08]} 27. Qd4 {[%emt 0:00:22]} h6 {[%emt 0:00:10]} 28. Bh4 {[%emt 0:00:03]} Qc6 {[%emt 0:00:28]} (28... a5 {might work better.} 29. Be6 Qa8) 29. Re7 {[%emt 0:00:22]} Rc7 {[%emt 0:00:32]} 30. Rd3 {[%emt 0:00:21]} Re8 {[%emt 0:00:32]} 31. Re6 {[%emt 0:00:14]} Qb5 {[%emt 0:00:22]} 32. Rde3 {[%emt 0:00:03]} Rf8 {[%emt 0:00:03]} 33. Qd3 {[%emt 0:00:12]} Qxd3 {[%emt 0:00:12]} 34. Rxd3 {[%emt 0:00:02]} Rfc8 {[%emt 0:00:00]} 35. Ree3 {[%emt 0:00:15]} Nb6 {[%emt 0:00:15]} 36. Be6 {[%emt 0:00:02]} Rf8 {[%emt 0:00:01]} 37. Bf2 {[%emt 0:00:09]} Nc4 {[%emt 0:00:06]} 38. Rf3 {[%emt 0:00:07]} Ne4 {[%emt 0:00:02]} 39. Bd4 {[%emt 0:00:03]} a5 {[%emt 0:00:06]} 40. bxa5 {[%emt 0:00:13]} Nb2 {[%emt 0:00:06]} 41. Rde3 {[%emt 0:00:04]} Nd2 {[%emt 0:00:01]} 42. Rg3 {[%emt 0:00:01] and Rg6 would now be decisive} Ndc4 {[%emt 0:00:05] [#]} 43. Rxg7 $1 {[%emt 0:00:07]} Rxg7+ {[%emt 0:00:07]} 44. Rg3 {[%emt 0:00:00] Weighted Error Value: White=0.24 (precise) /Black=0.57  Mistake:       	---       	Black=4      Inaccurate:     	White=1     	Black=4      OK:         	White=9     	Black=11     Best:        	White=4     	---} 1-0

[Event "CCT Chessable Masters Playoffs 2025"]
[Site "Online"]
[Date "2025.02.19"]
[Round "52"]
[White "Duda, Jan-Krzysztof"]
[Black "Wei, Yi"]
[Result "1-0"]
[Annotator "TA"]
[ECO "A21"]
[WhiteElo "2739"]
[BlackElo "2755"]
[PlyCount "103"]
[EventDate "2025.02.13"]
[EventType "k.o."]
[EventCountry "NET"]
[SourceTitle "playchess.com"]
[Source "ChessBase"]
[SourceQuality "1"]
[TimeControl "600"]

{[%evp 9,103,16,35,21,19,12,20,20,23,21,30,29,29,14,14,7,1,5,3,0,4,0,8,0,0,0,0,0,0,0,0,0,100,21,101,101,116,116,174,166,161,164,168,163,178,161,164,161,168,101,206,152,162,160,152,157,198,189,206,210,204,195,187,174,218,208,207,200,504,209,282,269,391,385,376,316,512,520,514,473,826,944,848,906,912,919,1306,943,918,495,490,453,1942,1796,1386,1335]} 1. c4 {[%emt 0:00:01]} e5 {[%emt 0:00:07]} 2. Nc3 {[%emt 0:00:00]} Bb4 {[%emt 0:00:05]} 3. Nd5 {[%emt 0:00:05]} a5 {[%emt 0:00:03]} 4. Nf3 {[%emt 0:00:10]} d6 {[%emt 0:00:05]} 5. a3 {[%emt 0:00:06]} Bc5 {[%emt 0:00:01]} 6. e3 {[%emt 0:00:06] A21: English Opening: 1...e5 2 Nc3.} c6 {[%emt 0:00:04]} 7. Nc3 {[%emt 0:00:02]} Nd7 {[%emt 0:00:06]} 8. d4 {[%emt 0:00:01] The position is equal.} Ba7 {[%emt 0:00:00]} 9. Be2 {[%emt 0:00:07]} Ngf6 {[%emt 0:00:09]} 10. O-O {[%emt 0:00:06] 10.b4 is more advanced technology.} O-O {[%emt 0:00:06]} 11. b3 {[%emt 0:00:13]} Re8 {[%emt 0:00:29]} 12. Bb2 $5 $146 {[%emt 0:00:01][%mdl 8] New and interesting.} (12. b4 e4 13. Nd2 d5 14. bxa5 Bb8 15. Nb3 Nf8 16. cxd5 cxd5 17. Nc5 Rxa5 18. a4 {0-1 Zvjaginsev,V (2674)-Esipenko,A (2592) Lindores Abbey Blitz Tal Memorial 2021 (17.15)}) 12... e4 {[%emt 0:00:13]} 13. Nd2 {[%emt 0:00:01]} d5 {[%emt 0:00:01]} 14. Qc2 {[%emt 0:00:06]} Bb8 {[%emt 0:00:22]} 15. Rfc1 {[%emt 0:00:04]} Nf8 {[%emt 0:00:11]} 16. Qd1 {[%emt 0:00:21]} Ng6 {[%emt 0:00:31]} 17. cxd5 {[%emt 0:00:13]} cxd5 {[%emt 0:00:02]} 18. Rc2 {[%emt 0:00:13]} h5 {[%emt 0:00:53]} 19. Bxh5 {[%emt 0:00:47]} Nxh5 {[%emt 0:00:03]} 20. Qxh5 {[%emt 0:00:00]} Be6 {[%emt 0:00:15]} (20... Ne7 $1 $11) 21. Rac1 {[%emt 0:00:05]} (21. f3 $16) 21... Qd7 {[%emt 0:00:27]} (21... Ne7 $11) 22. Na4 $16 {[%emt 0:00:29][%cal Bc3a4,Ba4c5,Bc5b7][%mdl 32]} Qd6 {[%emt 0:01:28] Wards off Nb6} 23. Nc5 {[%emt 0:00:20][%cal Of2f3]} Ne7 {[%emt 0:00:06]} (23... b6 $16) 24. Nxb7 $18 {[%emt 0:00:22]} Qb6 {[%emt 0:00:04]} 25. Nc5 {[%emt 0:00:01]} Bf5 {[%emt 0:00:03]} 26. Nf1 {[%emt 0:00:12]} Bg6 {[%emt 0:00:19]} 27. Qe2 {[%emt 0:00:13]} Bd6 {[%emt 0:00:10]} 28. a4 {[%emt 0:00:29]} Nf5 {[%emt 0:00:09]} 29. Qb5 {[%emt 0:00:13]} (29. Nd2 $18) 29... Qa7 {[%emt 0:00:02]} (29... Qxb5 $16 30. axb5 Rab8) 30. Ng3 {[%emt 0:00:57]} Rab8 {[%emt 0:00:07]} 31. Qe2 {[%emt 0:00:13]} Nxg3 {[%emt 0:00:06]} 32. fxg3 {[%emt 0:00:01][%cal Bf2g3,Bg3g4,Bg4g5][%mdl 32]} Qe7 {[%emt 0:00:13]} 33. Qg4 {[%emt 0:00:03]} Red8 {[%emt 0:00:08]} 34. Bc3 {[%emt 0:00:15]} Ra8 {[%emt 0:00:16]} 35. Be1 {[%emt 0:00:15]} Ra7 {[%emt 0:00:04]} 36. Qh4 {[%emt 0:00:17]} Qe8 {[%emt 0:00:04]} 37. g4 {[%emt 0:00:03]} Be7 {[%emt 0:00:02]} 38. Qh3 {[%emt 0:00:02]} f6 $2 {[%emt 0:00:11]} (38... Rc8 {is more resistant.} 39. Bh4 f6) 39. Bg3 {[%emt 0:00:03]} (39. Ne6 $142) 39... Kf7 {[%emt 0:00:01]} 40. Bf4 {[%emt 0:00:02]} Qh8 {[%emt 0:00:06]} (40... Rc8 {was called for.} 41. g5 Rc6) 41. Qg3 {[%emt 0:00:05]} Rc8 {[%emt 0:00:03]} 42. g5 {[%emt 0:00:01]} f5 $2 {[%emt 0:00:03] [#]} (42... Qh5 43. h3 Kg8) 43. Nd7 $1 {[%emt 0:00:02][%mdl 512] White is clearly winning.} Rxc2 {[%emt 0:00:08]} 44. Ne5+ {[%emt 0:00:00]} Ke6 {[%emt 0:00:02]} (44... Kg8 $142 45. Rxc2 Qh5 46. Rc8+ Kh7) 45. Rxc2 {[%emt 0:00:00]} Be8 {[%emt 0:00:01] Dodges Rc6+} 46. Rc8 {[%emt 0:00:18]} Qh5 {[%emt 0:00:05]} 47. h3 {[%emt 0:00:01]} Bd6 {[%emt 0:00:10]} 48. Kh2 {[%emt 0:00:05] Strongly threatening Nc6.} Rc7 {[%emt 0:00:02]} 49. Rxc7 {[%emt 0:00:09]} Bxc7 {[%emt 0:00:01]} 50. Qe1 {[%emt 0:00:01]} g6 {[%emt 0:00:21]} (50... Bxe5 $142 51. dxe5 d4 52. exd4 (52. Qxa5 dxe3 53. Qb6+ Kf7 $18) 52... e3 53. Qxa5 (53. Qxe3 Qd1 $18) (53. Bxe3 Bc6 $18) 53... Qd1) 51. Qc3 {[%emt 0:00:02]} Qh7 {[%emt 0:00:04] [#]} 52. Nxg6 $1 {[%emt 0:00:04][%mdl 512] Weighted Error Value: White=0.50/Black=0.73  Mistake:       	White=3     	Black=9      Inaccurate:     	---       	Black=1      OK:         	White=11    	Black=16     Best:        	White=5     	Black=1} 1-0

[Event "CCT Chessable Masters Playoffs 2025"]
[Site "Online"]
[Date "2025.02.19"]
[Round "52"]
[White "Giri, Anish"]
[Black "Yu, Yangyi"]
[Result "1/2-1/2"]
[Annotator "TA"]
[ECO "A14"]
[WhiteElo "2728"]
[BlackElo "2715"]
[PlyCount "88"]
[EventDate "2025.02.13"]
[EventType "k.o."]
[EventCountry "NET"]
[SourceTitle "playchess.com"]
[Source "ChessBase"]
[SourceQuality "1"]
[TimeControl "600"]

{[%evp 19,88,0,2,0,0,0,17,12,4,0,21,13,8,18,14,22,23,10,14,0,0,0,0,0,0,0,16,21,17,6,12,0,2,0,0,0,0,0,0,-10,-3,-9,-10,-18,0,-3,0,-15,-20,-64,0,0,0,0,0,0,0,0,0,-89,-64,-316,-323,-308,-203,-422,-345,-1333,-1311,-1523,-1484]} 1. c4 {[%emt 0:00:03]} e6 {[%emt 0:00:04]} 2. g3 {[%emt 0:00:02]} d5 {[%emt 0:00:01]} 3. Bg2 {[%emt 0:00:01]} Nf6 {[%emt 0:00:00]} 4. Nf3 {[%emt 0:00:01]} Be7 {[%emt 0:00:01]} 5. O-O {[%emt 0:00:01]} O-O {[%emt 0:00:00]} 6. b3 {[%emt 0:00:01]} c5 {[%emt 0:00:01]} 7. d3 {[%emt 0:00:04]} Nc6 {[%emt 0:00:03]} 8. e3 {[%emt 0:00:01]} b6 {[%emt 0:00:08]} 9. Bb2 {[%emt 0:00:11]} Bb7 {[%emt 0:00:01]} 10. Nc3 {[%emt 0:00:05]} Qd7 {[%emt 0:00:18]} 11. cxd5 {[%emt 0:00:20] A14: English Opening: 1...e6 with b3 by White.} Nxd5 {[%emt 0:00:24]} 12. Nxd5 {[%emt 0:00:01]} Qxd5 {[%emt 0:00:42] [#]} 13. Ne5 $1 {[%emt 0:01:04] The position is equal.} Qd6 {[%emt 0:00:02]} 14. Nc4 {[%emt 0:00:01]} Qd8 $146 {[%emt 0:00:16]} (14... Qd7 15. Qg4 g6 16. Rfd1 Rad8 17. d4 cxd4 18. exd4 Nb4 19. Ne5 Qc8 20. Rac1 Qa8 21. Bxb7 Qxb7 {½-½ Ni,H (2662)-Xiu,D (2519) CHN-ch Prelim rap 1st rapid 2011 (8)}) 15. Qe2 {[%emt 0:01:11][%cal Od3d4]} Rb8 {[%emt 0:00:35]} 16. Rfd1 {[%emt 0:01:11]} Bf6 {[%emt 0:00:03]} 17. Rac1 {[%emt 0:00:32]} Bxb2 {[%emt 0:00:12]} 18. Qxb2 {[%emt 0:00:02]} Qe7 {[%emt 0:00:41]} 19. Qa3 {[%emt 0:00:28]} e5 {[%emt 0:02:23]} 20. Qb2 {[%emt 0:00:24]} Rfe8 {[%emt 0:00:03]} 21. a3 {[%emt 0:00:01]} h6 {[%emt 0:00:04]} 22. h4 {[%emt 0:00:04]} Nd8 {[%emt 0:00:12]} 23. b4 {[%emt 0:00:07]} Bxg2 {[%emt 0:00:02]} 24. Kxg2 {[%emt 0:00:00]} Nb7 {[%emt 0:00:02]} 25. Nd2 {[%emt 0:00:03]} Rbc8 {[%emt 0:00:11]} 26. Qb3 {[%emt 0:00:12]} Red8 {[%emt 0:00:08]} 27. Nf3 {[%emt 0:00:15]} e4 {[%emt 0:00:09]} 28. dxe4 {[%emt 0:00:02]} Qxe4 {[%emt 0:00:03]} 29. Rc4 {[%emt 0:00:04]} Qe6 {[%emt 0:00:04]} 30. Rxd8+ {[%emt 0:00:13]} Rxd8 {[%emt 0:00:00]} 31. Qc2 {[%emt 0:00:03]} Nd6 {[%emt 0:00:05]} 32. Rf4 {[%emt 0:00:01]} c4 {[%emt 0:00:09]} 33. a4 {[%emt 0:00:02]} (33. Rd4 $5) 33... Rc8 {[%emt 0:00:03]} 34. e4 {[%emt 0:00:13]} (34. b5 {with more complications.} c3 35. Kf1 Rc4 36. Rd4) 34... Nb7 {[%emt 0:00:51]} (34... c3 $15 35. e5 Qg6 36. Qxg6 fxg6) 35. Nd4 $11 {[%emt 0:00:13]} Qe5 {[%emt 0:00:09]} 36. Nf3 {[%emt 0:00:27]} Qe6 {[%emt 0:00:14]} 37. Qc3 {[%emt 0:00:05]} a5 {[%emt 0:00:11]} 38. bxa5 {[%emt 0:00:07]} Nxa5 {[%emt 0:00:00][%cal Bb7a5,Ba5c6,Bc6d4,Bd4e2][%mdl 32]} 39. Nh2 {[%emt 0:00:19]} (39. Nd4 $11 Qe5 40. Nb5) 39... Rd8 {[%emt 0:00:12] aiming for ...Rd3.} 40. Rg4 $2 {[%emt 0:00:17][%mdl 8192] Loses the game.} (40. Nf3 $1 $15) 40... f6 $19 {[%emt 0:00:04]} 41. Rf4 {[%emt 0:00:07] [#]} Rd3 {[%emt 0:00:02] Inhibits Nf3.} 42. Qc2 {[%emt 0:00:01]} (42. Qb2 {only move.}) 42... Nc6 {[%emt 0:00:08]} 43. Ng4 $2 {[%emt 0:00:07]} (43. Nf3 Nb4 44. Qb2) 43... Nd4 {[%emt 0:00:06]} 44. Qb1 {[%emt 0:00:31]} Ne2 {[%emt 0:00:04][%mdl 32768] Weighted Error Value: White=0.56/Black=0.08 (flawless)  An unexpected result.  Loses game:     	White=1     	---        Mistake:       	White=3     	Black=1      Inaccurate:     	White=1     	---        OK:         	White=10    	Black=16     Best:        	---       	Black=2} 1/2-1/2

[Event "CCT Chessable Masters Playoffs 2025"]
[Site "Online"]
[Date "2025.02.19"]
[Round "52"]
[White "Yu, Yangyi"]
[Black "Giri, Anish"]
[Result "1-0"]
[Annotator "TA"]
[ECO "D13"]
[WhiteElo "2715"]
[BlackElo "2728"]
[PlyCount "151"]
[EventDate "2025.02.13"]
[EventType "k.o."]
[EventCountry "NET"]
[SourceTitle "playchess.com"]
[Source "ChessBase"]
[SourceQuality "1"]
[TimeControl "600"]

{[%evp 16,151,28,31,30,16,14,7,11,11,12,21,18,16,16,10,30,9,19,17,37,35,37,20,22,18,13,25,24,0,33,0,27,7,18,0,7,2,29,22,18,17,22,26,29,14,33,13,16,3,0,4,19,15,12,14,16,16,16,10,24,1,1,1,0,0,7,0,10,8,60,60,60,60,60,60,165,76,76,72,68,64,54,52,62,62,62,62,174,0,62,0,70,70,129,118,99,44,44,44,44,44,44,44,44,44,44,21,21,21,21,21,21,21,29976,29977,29979,29980,29980,29981,29981,29981,29982,29982,29987,29988,29988,29989,29989,29990,29991,29992,29993,29994,29994,29995,29996,1315]} 1. d4 {[%emt 0:00:00]} d5 {[%emt 0:00:02]} 2. c4 {[%emt 0:00:02]} c6 {[%emt 0:00:01]} 3. cxd5 {[%emt 0:00:02]} cxd5 {[%emt 0:00:01]} 4. Nc3 {[%emt 0:00:01]} Nf6 {[%emt 0:00:02]} 5. Bf4 {[%emt 0:00:02]} Nc6 {[%emt 0:00:03]} 6. Nf3 {[%emt 0:00:01]} e6 {[%emt 0:00:12]} 7. e3 {[%emt 0:00:08]} Bd6 {[%emt 0:00:00]} 8. Bg3 {[%emt 0:00:17]} O-O {[%emt 0:00:04]} 9. Bd3 {[%emt 0:00:01]} h6 {[%emt 0:00:01] D13: Slav Defence: Exchange variation without ...Bf5.} 10. O-O {[%emt 0:00:01]} Bxg3 {[%emt 0:00:01]} 11. hxg3 {[%emt 0:00:01]} Qd6 {[%emt 0:00:05] The position is equal.} 12. Rc1 {[%emt 0:00:03]} Bd7 {[%emt 0:00:01]} 13. Qb3 {[%emt 0:00:34]} Na5 $146 {[%emt 0:00:16]} ({Predecessor:} 13... Rfc8 14. Qxb7 Rab8 15. Qa6 Rxb2 16. Ne5 Rb6 17. Nb5 Qb8 18. Nxd7 Nxd7 19. Qa4 a6 {1-0 Le,T (2514)-Kamsky,G (2649) Titled Tuesday intern op 31st Aug blitz 2021 (6)}) 14. Qc2 {[%emt 0:00:06]} Nc6 {[%emt 0:00:01]} 15. Nb5 {[%emt 0:00:16]} Qb8 {[%emt 0:00:15]} 16. Qc5 {[%emt 0:00:06]} a6 {[%emt 0:00:12]} 17. Nd6 {[%emt 0:00:18]} Ne8 {[%emt 0:00:47]} 18. Nxe8 {[%emt 0:00:44]} Rxe8 {[%emt 0:00:01]} 19. Qb6 {[%emt 0:00:08]} Qd8 {[%emt 0:00:27]} 20. Qb3 {[%emt 0:00:28][%cal Oc1c5]} Na5 {[%emt 0:00:16]} 21. Qb4 {[%emt 0:00:06]} Nc6 {[%emt 0:00:12]} 22. Qb3 {[%emt 0:00:25]} (22. Qxb7 Rb8 23. Qxa6 Nb4 $17) 22... Na5 {[%emt 0:00:01]} 23. Qb4 {[%emt 0:00:01]} Nc6 {[%emt 0:00:01] Wards off Ne5} 24. Qd6 {[%emt 0:00:02]} (24. Qxb7 Rb8 25. Qxa6 Nb4 $17) 24... Qe7 {[%emt 0:00:26]} 25. Qc7 {[%emt 0:00:19]} (25. Qxe7 {simplifies} Nxe7 26. Ne5 Bc6 27. Rc5) 25... Qd8 {[%emt 0:00:33]} 26. Qf4 {[%emt 0:00:31]} Qf6 {[%emt 0:00:02]} (26... f6 27. Qg4 Rc8 28. Nh4 Qa5) 27. Rc3 {[%emt 0:00:10]} Qxf4 {[%emt 0:00:10]} (27... Qe7 {looks sharper.} 28. Rfc1 Rac8 29. Ne5 Nxe5 30. dxe5 Rxc3 31. Rxc3 Bc6) 28. gxf4 {[%emt 0:00:00]} Rec8 {[%emt 0:00:08]} 29. Rfc1 {[%emt 0:00:01]} Kf8 {[%emt 0:00:01]} 30. g4 {[%emt 0:00:24]} Ke7 {[%emt 0:00:00]} 31. Kg2 {[%emt 0:00:01]} Nb4 {[%emt 0:00:22] aiming for ...Nxd3.} 32. Bb1 {[%emt 0:00:01]} Rxc3 {[%emt 0:00:01]} 33. Rxc3 {[%emt 0:00:01]} Nc6 {[%emt 0:00:00]} 34. Kg3 {[%emt 0:00:15]} Rc8 {[%emt 0:00:02]} 35. Ne5 {[%emt 0:00:24]} Nxe5 {[%emt 0:00:01]} 36. Rxc8 {[%emt 0:00:02]} Bxc8 {[%emt 0:00:00]} 37. fxe5 $11 {[%emt 0:00:01][%mdl 4096] Endgame KB-KB} g5 {[%emt 0:00:19]} 38. f4 {[%emt 0:00:09]} a5 {[%emt 0:00:02]} 39. Bd3 {[%emt 0:00:03]} Bd7 {[%emt 0:00:03]} 40. a3 {[%emt 0:00:09]} Kd8 {[%emt 0:00:03]} 41. Bh7 {[%emt 0:00:14]} Bb5 {[%emt 0:00:15]} 42. Bc2 {[%emt 0:00:07]} b6 {[%emt 0:00:21]} (42... Ke7 $11) 43. f5 $1 $14 {[%emt 0:00:03]} Bc6 {[%emt 0:00:30]} 44. f6 {[%emt 0:00:01]} Kd7 {[%emt 0:00:01]} 45. Bd3 {[%emt 0:00:03]} Kc7 {[%emt 0:00:02]} (45... Ba4 $14) 46. Kf2 {[%emt 0:00:02]} (46. Bg6 $1 $18 {[%cal Rg6f7] and White stays clearly on top.}) 46... Kd8 $16 {[%emt 0:00:01]} 47. Ke2 {[%emt 0:00:03]} Ba4 {[%emt 0:00:02]} 48. Kd2 {[%emt 0:00:01]} Kd7 {[%emt 0:00:04]} 49. Be2 {[%emt 0:00:02]} Kd8 {[%emt 0:00:04]} 50. Kc3 {[%emt 0:00:01]} Bd7 {[%emt 0:00:09]} 51. Bd3 {[%emt 0:00:03]} Kc7 {[%emt 0:00:06]} (51... Ke8 $14) 52. Be2 $2 {[%emt 0:00:04]} ({Only move:} 52. Bg6 $1 $18 {[%cal Rg6f7]}) 52... Bc6 {[%emt 0:00:02]} (52... Kd8 $1 $11) 53. Bd3 {[%emt 0:00:01][%cal Od3g6]} Bd7 $1 {[%emt 0:00:01]} 54. e4 {[%emt 0:00:12]} dxe4 {[%emt 0:00:10]} (54... Kc8 $14) 55. Bxe4 {[%emt 0:00:01][%cal Oe4g6]} Kd8 {[%emt 0:00:08]} 56. b4 {[%emt 0:00:14] White is more active.} ({White should play} 56. Kc4 $16) 56... axb4+ $14 {[%emt 0:00:01]} 57. Kxb4 {[%emt 0:00:02]} Ke8 $1 {[%emt 0:00:24]} 58. Bd3 {[%emt 0:00:05]} Kd8 {[%emt 0:00:07]} 59. Bb5 {[%emt 0:00:03]} Bc8 {[%emt 0:00:01]} 60. Bc6 {[%emt 0:00:03]} Ba6 {[%emt 0:00:01]} 61. d5 {[%emt 0:00:11]} exd5 $1 {[%emt 0:00:26]} 62. Bxd5 {[%emt 0:00:00]} Ke8 {[%emt 0:00:01]} 63. Bc4 {[%emt 0:00:22]} Bc8 $1 {[%emt 0:00:07]} 64. Be2 {[%emt 0:00:10] And now Kb5 would win.} Bd7 $2 {[%emt 0:00:17][%mdl 8192] [#] Black cannot hold the game after this.} (64... Kd7 $11) 65. Bb5 $1 {[%emt 0:00:06] White mates.} Kd8 {[%emt 0:00:22] [#]} 66. Bxd7 $1 {[%emt 0:00:07]} Kxd7 {[%emt 0:00:00] KP-KP} 67. Kc4 {[%emt 0:00:14]} Ke6 {[%emt 0:00:22]} 68. Kd4 {[%emt 0:00:01]} h5 {[%emt 0:00:07]} 69. gxh5 {[%emt 0:00:04][%cal Bg4h5,Bh5h6][%mdl 32]} Kf5 {[%emt 0:00:00]} 70. h6 {[%emt 0:00:11]} Kg6 {[%emt 0:00:01] [#]} 71. e6 $1 {[%emt 0:00:09][%mdl 512]} fxe6 {[%emt 0:00:06]} 72. Ke5 {[%emt 0:00:01]} g4 {[%emt 0:00:10]} 73. Kxe6 {[%emt 0:00:01]} g3 {[%emt 0:00:00]} 74. f7 {[%emt 0:00:00]} g2 {[%emt 0:00:01]} 75. f8=Q {[%emt 0:00:01]} (75. f8=R $2 {too greedy.} Kh7 76. Rf7+ Kxh6 77. Rf6+ Kg7 78. Rf7+ Kg8 $19) 75... g1=Q {[%emt 0:00:01]} 76. Qg7+ {[%emt 0:00:01] Weighted Error Value: White=0.13 (very precise) /Black=0.12 (very precise)   Loses game:     	---       	Black=1      Missed win:     	White=1     	---        Mistake:       	White=2     	Black=5      Inaccurate:     	---       	Black=1      OK:         	White=20    	Black=19     Best:        	---       	Black=3      Strong:       	White=2     	Black=4} 1-0